[Event "*** Titled Tuesday Blitz"]
[Site "Chess.com"]
[Date "2020.11.24"]
[Round "1"]
[White "xberli"]
[Black "gumimis"]
[Result "1-0"]
[WhiteElo "2572"]
[BlackElo "2276"]
[TimeControl "180+1"]
[EndTime "10:20:40 PST"]
[Termination "xberli won by resignation"]

1. d4 {[%clk 0:03:00]} 1... Nf6 {[%clk 0:02:57.7]} 2. c4 {[%clk 0:02:59.8]} 2...
c5 {[%clk 0:02:58.1]} 3. d5 {[%clk 0:02:59.2]} 3... b5 {[%clk 0:02:58.3]} 4.
cxb5 {[%clk 0:03:00.1]} 4... a6 {[%clk 0:02:58]} 5. f3 {[%clk 0:03:00.6]} 5...
axb5 {[%clk 0:02:22.8]} 6. e4 {[%clk 0:03:01.5]} 6... b4 {[%clk 0:01:57.9]} 7.
e5 {[%clk 0:02:54.8]} 7... Ng8 {[%clk 0:01:56.1]} 8. Bc4 {[%clk 0:02:52.9]} 8...
d6 {[%clk 0:01:54.5]} 9. f4 {[%clk 0:02:42.6]} 9... g6 {[%clk 0:01:53]} 10. Nf3
{[%clk 0:02:41.8]} 10... Bg7 {[%clk 0:01:52.1]} 11. O-O {[%clk 0:02:42.1]} 11...
Nd7 {[%clk 0:01:43.8]} 12. Qe2 {[%clk 0:02:19.1]} 12... Nb6 {[%clk 0:01:41.5]}
13. Bb5+ {[%clk 0:02:13.3]} 13... Bd7 {[%clk 0:01:41.4]} 14. exd6 {[%clk
0:02:11.4]} 14... Bxb5 {[%clk 0:01:30.8]} 15. Qxb5+ {[%clk 0:02:12.3]} 15... Kf8
{[%clk 0:01:29.7]} 16. dxe7+ {[%clk 0:02:07]} 16... Nxe7 {[%clk 0:01:30.6]} 17.
Qxc5 {[%clk 0:02:05]} 17... Nxd5 {[%clk 0:01:28.2]} 18. Nbd2 {[%clk 0:01:56.9]}
18... Qb6 {[%clk 0:01:19.7]} 19. Nb3 {[%clk 0:01:44.9]} 19... Rc8 {[%clk
0:00:58.4]} 20. Qxb6 {[%clk 0:01:39.7]} 20... Nxb6 {[%clk 0:00:59.3]} 21. a4
{[%clk 0:01:36.8]} 21... bxa3 {[%clk 0:00:54.7]} 22. Rxa3 {[%clk 0:01:36]} 22...
Nc4 {[%clk 0:00:54.2]} 23. Ra7 {[%clk 0:01:30]} 23... Bxb2 {[%clk 0:00:52.7]}
24. Bxb2 {[%clk 0:01:29.9]} 24... Nxb2 {[%clk 0:00:52.7]} 25. Ne5 {[%clk
0:01:28]} 25... Nc4 {[%clk 0:00:46.2]} 26. Nd4 {[%clk 0:01:22.1]} 26... Nxe5
{[%clk 0:00:38.4]} 27. fxe5 {[%clk 0:01:23]} 27... Rc5 {[%clk 0:00:23.6]} 28.
Ne6+ {[%clk 0:01:21]} 28... Kg8 {[%clk 0:00:22]} 29. Nxc5 {[%clk 0:01:21.9]} 1-0

[Event "*** Titled Tuesday Blitz"]
[Site "Chess.com"]
[Date "2020.11.24"]
[Round "1"]
[White "Evgeny81"]
[Black "CM_rui"]
[Result "1-0"]
[WhiteElo "2721"]
[BlackElo "2378"]
[TimeControl "180+1"]
[EndTime "10:20:41 PST"]
[Termination "Evgeny81 won by resignation"]

1. e4 {[%clk 0:03:00.9]} 1... e5 {[%clk 0:02:55.9]} 2. Nf3 {[%clk 0:03:00.3]}
2... Nc6 {[%clk 0:02:55.4]} 3. d4 {[%clk 0:03:00.3]} 3... exd4 {[%clk 0:02:54]}
4. Nxd4 {[%clk 0:03:01.2]} 4... Bc5 {[%clk 0:02:51.7]} 5. Nxc6 {[%clk
0:02:59.1]} 5... Qf6 {[%clk 0:02:51.8]} 6. Qf3 {[%clk 0:02:57.9]} 6... dxc6
{[%clk 0:02:49.1]} 7. Nc3 {[%clk 0:02:52.9]} 7... Be6 {[%clk 0:02:46.8]} 8. Be3
{[%clk 0:02:51.3]} 8... Qxf3 {[%clk 0:02:44]} 9. gxf3 {[%clk 0:02:51]} 9... Bxe3
{[%clk 0:02:44.3]} 10. fxe3 {[%clk 0:02:51.9]} 10... O-O-O {[%clk 0:02:44.5]}
11. Rg1 {[%clk 0:02:50.6]} 11... g6 {[%clk 0:02:42]} 12. Rd1 {[%clk 0:02:46.3]}
12... Ne7 {[%clk 0:02:41.8]} 13. Rxd8+ {[%clk 0:02:41.2]} 13... Rxd8 {[%clk
0:02:42.7]} 14. Bd3 {[%clk 0:02:38.9]} 14... f5 {[%clk 0:02:27.6]} 15. exf5
{[%clk 0:02:33.3]} 15... Bxf5 {[%clk 0:02:25]} 16. Ke2 {[%clk 0:02:31.8]} 16...
Be6 {[%clk 0:02:16.3]} 17. Ne4 {[%clk 0:02:27.9]} 17... Nd5 {[%clk 0:02:13.3]}
18. a3 {[%clk 0:02:23.4]} 18... Re8 {[%clk 0:02:09.7]} 19. Kf2 {[%clk
0:02:19.5]} 19... b6 {[%clk 0:02:03.6]} 20. h4 {[%clk 0:02:08.5]} 20... Kb7
{[%clk 0:01:48.2]} 21. h5 {[%clk 0:02:06.4]} 21... Bf5 {[%clk 0:01:38]} 22. hxg6
{[%clk 0:02:01.5]} 22... Bxg6 {[%clk 0:01:36.6]} 23. Re1 {[%clk 0:01:55.7]}
23... Rf8 {[%clk 0:01:33.8]} 24. Ng3 {[%clk 0:01:49.2]} 24... Nf6 {[%clk
0:01:29.6]} 25. Rh1 {[%clk 0:01:40.3]} 25... Ng4+ {[%clk 0:01:24.6]} 26. Ke2
{[%clk 0:01:40.5]} 26... Ne5 {[%clk 0:01:24.1]} 27. f4 {[%clk 0:01:35.2]} 27...
Nxd3 {[%clk 0:01:05]} 28. cxd3 {[%clk 0:01:36.1]} 28... c5 {[%clk 0:01:05.6]}
29. Rh4 {[%clk 0:01:32.6]} 29... Kc6 {[%clk 0:01:04.1]} 30. f5 {[%clk
0:01:28.2]} 30... Bxf5 {[%clk 0:01:02.6]} 31. Rf4 {[%clk 0:01:28.2]} 31... Kb5
{[%clk 0:00:50.1]} 32. Nxf5 {[%clk 0:01:23.7]} 32... Rg8 {[%clk 0:00:41.4]} 33.
e4 {[%clk 0:01:23.8]} 33... Rg2+ {[%clk 0:00:39.7]} 34. Rf2 {[%clk 0:01:23.7]}
34... Rg1 {[%clk 0:00:40.3]} 35. e5 {[%clk 0:01:22.1]} 35... h5 {[%clk
0:00:40.5]} 36. e6 {[%clk 0:01:20.8]} 36... Rg6 {[%clk 0:00:41]} 37. e7 {[%clk
0:01:21]} 37... Re6+ {[%clk 0:00:41.1]} 38. Kf3 {[%clk 0:01:21]} 38... h4 {[%clk
0:00:41.3]} 39. Re2 {[%clk 0:01:20.3]} 1-0

[Event "*** Titled Tuesday Blitz"]
[Site "Chess.com"]
[Date "2020.11.24"]
[Round "1"]
[White "FMOlexandrProhorov"]
[Black "Savva09022009"]
[Result "0-1"]
[WhiteElo "2172"]
[BlackElo "2521"]
[TimeControl "180+1"]
[EndTime "10:20:42 PST"]
[Termination "Savva09022009 won by resignation"]

1. e4 {[%clk 0:02:48.2]} 1... c5 {[%clk 0:02:58.5]} 2. c3 {[%clk 0:02:47.4]}
2... Nf6 {[%clk 0:02:57.2]} 3. e5 {[%clk 0:02:46.7]} 3... Nd5 {[%clk 0:02:56.9]}
4. Nf3 {[%clk 0:02:44.1]} 4... Nc6 {[%clk 0:02:55.1]} 5. Bc4 {[%clk 0:02:43.7]}
5... Nb6 {[%clk 0:02:52.3]} 6. Bb3 {[%clk 0:02:43.3]} 6... d5 {[%clk 0:02:52.4]}
7. d4 {[%clk 0:02:40.6]} 7... cxd4 {[%clk 0:02:50.9]} 8. cxd4 {[%clk 0:02:41.2]}
8... Bg4 {[%clk 0:02:50.5]} 9. Be3 {[%clk 0:02:32.4]} 9... e6 {[%clk 0:02:46.8]}
10. O-O {[%clk 0:02:31.6]} 10... Nc4 {[%clk 0:02:46.5]} 11. h3 {[%clk
0:02:24.3]} 11... Nxb2 {[%clk 0:02:32.2]} 12. Qe2 {[%clk 0:02:13.9]} 12... Bxf3
{[%clk 0:02:30.7]} 13. Qxf3 {[%clk 0:02:14]} 13... Nc4 {[%clk 0:02:30.2]} 14.
Nc3 {[%clk 0:02:12]} 14... Bb4 {[%clk 0:02:27]} 15. Rac1 {[%clk 0:02:01.8]}
15... O-O {[%clk 0:02:24.7]} 16. Qg4 {[%clk 0:01:58.2]} 16... Kh8 {[%clk
0:02:16.4]} 17. Ne2 {[%clk 0:01:56.6]} 17... Bd2 {[%clk 0:02:13.2]} 18. Bxc4
{[%clk 0:01:25.1]} 18... Bxc1 {[%clk 0:02:09.8]} 19. Bd3 {[%clk 0:01:25.1]}
19... Bxe3 {[%clk 0:02:05.7]} 20. fxe3 {[%clk 0:01:26]} 20... f5 {[%clk
0:02:04.6]} 21. exf6 {[%clk 0:01:18.5]} 21... Rxf6 {[%clk 0:02:03.1]} 22. Rb1
{[%clk 0:01:14.9]} 22... Qe7 {[%clk 0:02:00]} 23. Nf4 {[%clk 0:01:14.6]} 23...
Raf8 {[%clk 0:01:57.2]} 24. Qh5 {[%clk 0:01:06.3]} 24... Rh6 {[%clk 0:01:54.4]}
25. Qg4 {[%clk 0:01:03.2]} 25... b6 {[%clk 0:01:42.1]} 26. Kh2 {[%clk
0:00:38.6]} 26... Qd6 {[%clk 0:01:37.7]} 27. Kh1 {[%clk 0:00:37.4]} 27... e5
{[%clk 0:01:36.2]} 28. Ne2 {[%clk 0:00:26.4]} 28... e4 {[%clk 0:01:33.4]} 29.
Bb5 {[%clk 0:00:23.1]} 29... Rg6 {[%clk 0:01:30]} 30. Qh4 {[%clk 0:00:20.6]}
30... Qf6 {[%clk 0:01:28.1]} 31. Nf4 {[%clk 0:00:20.1]} 31... Qxh4 {[%clk
0:01:26.7]} 0-1

[Event "*** Titled Tuesday Blitz"]
[Site "Chess.com"]
[Date "2020.11.24"]
[Round "1"]
[White "ChessAurochs"]
[Black "katchesskat"]
[Result "1-0"]
[WhiteElo "2560"]
[BlackElo "2261"]
[TimeControl "180+1"]
[EndTime "10:20:44 PST"]
[Termination "ChessAurochs won by resignation"]

1. e4 {[%clk 0:03:00.9]} 1... c5 {[%clk 0:03:00.9]} 2. Nf3 {[%clk 0:03:00.6]}
2... e6 {[%clk 0:03:00.6]} 3. c3 {[%clk 0:02:56.6]} 3... Nf6 {[%clk 0:02:56.5]}
4. e5 {[%clk 0:02:56.7]} 4... Nd5 {[%clk 0:02:56.6]} 5. d4 {[%clk 0:02:57.6]}
5... Nc6 {[%clk 0:02:55.7]} 6. Bc4 {[%clk 0:02:52.5]} 6... Nb6 {[%clk
0:02:53.4]} 7. Bd3 {[%clk 0:02:49.9]} 7... cxd4 {[%clk 0:02:53.5]} 8. cxd4
{[%clk 0:02:50.8]} 8... Bb4+ {[%clk 0:02:53.4]} 9. Nc3 {[%clk 0:02:49.9]} 9...
Nd5 {[%clk 0:02:51.1]} 10. Bd2 {[%clk 0:02:48.4]} 10... Nce7 {[%clk 0:02:38.3]}
11. O-O {[%clk 0:02:46.3]} 11... f5 {[%clk 0:02:35.1]} 12. Nb5 {[%clk 0:02:30]}
12... O-O {[%clk 0:02:27.9]} 13. a3 {[%clk 0:02:24.5]} 13... Bxd2 {[%clk
0:02:03.1]} 14. Qxd2 {[%clk 0:02:25.4]} 14... b6 {[%clk 0:02:01.6]} 15. Nd6
{[%clk 0:02:24.5]} 15... a5 {[%clk 0:01:59.9]} 16. b4 {[%clk 0:02:19.7]} 16...
Ba6 {[%clk 0:01:50.1]} 17. b5 {[%clk 0:02:18.3]} 17... Bc8 {[%clk 0:01:47.4]}
18. Rac1 {[%clk 0:02:17.6]} 18... Rb8 {[%clk 0:01:33.3]} 19. Rc2 {[%clk
0:02:15.1]} 19... Bb7 {[%clk 0:01:33.4]} 20. Rfc1 {[%clk 0:02:14.7]} 20... Ba8
{[%clk 0:01:32]} 21. Bf1 {[%clk 0:02:07.5]} 21... Qe8 {[%clk 0:01:31.9]} 22.
Nxe8 {[%clk 0:02:06.6]} 22... Rfxe8 {[%clk 0:01:32.5]} 23. g3 {[%clk 0:02:05]}
23... h6 {[%clk 0:01:28]} 24. Bg2 {[%clk 0:02:04.6]} 24... Kf7 {[%clk
0:01:25.4]} 25. h4 {[%clk 0:02:04.1]} 25... Rg8 {[%clk 0:01:19.2]} 26. h5 {[%clk
0:02:01.8]} 26... g5 {[%clk 0:01:19.2]} 27. hxg6+ {[%clk 0:02:00]} 27... Rxg6
{[%clk 0:01:19.3]} 28. Nh4 {[%clk 0:02:00.6]} 28... Rg5 {[%clk 0:01:18.3]} 29.
Kf1 {[%clk 0:01:57.6]} 29... Rbg8 {[%clk 0:01:17.5]} 30. Rc7 {[%clk 0:01:40.8]}
30... f4 {[%clk 0:01:14.5]} 31. Rxd7 {[%clk 0:01:36.4]} 31... fxg3 {[%clk
0:01:14.1]} 32. fxg3 {[%clk 0:01:36.5]} 32... Rxg3 {[%clk 0:01:14.2]} 33. Qxh6
{[%clk 0:01:34.3]} 33... R3g4 {[%clk 0:00:50.4]} 34. Qh5+ {[%clk 0:01:14.8]}
34... R8g6 {[%clk 0:00:49.3]} 35. Nxg6 {[%clk 0:01:11.7]} 35... Rxg6 {[%clk
0:00:47.9]} 36. Bxd5 {[%clk 0:01:09.8]} 36... Bxd5 {[%clk 0:00:46.8]} 37. Rxe7+
{[%clk 0:01:09.6]} 1-0

[Event "*** Titled Tuesday Blitz"]
[Site "Chess.com"]
[Date "2020.11.24"]
[Round "1"]
[White "sunofadawn"]
[Black "LittleMyMoomin"]
[Result "1-0"]
[WhiteElo "2474"]
[BlackElo "1851"]
[TimeControl "180+1"]
[EndTime "10:20:48 PST"]
[Termination "sunofadawn won by resignation"]

1. e4 {[%clk 0:03:00.9]} 1... c5 {[%clk 0:02:56.8]} 2. Nf3 {[%clk 0:03:01.3]}
2... d6 {[%clk 0:02:55.9]} 3. Nc3 {[%clk 0:03:01.5]} 3... Nf6 {[%clk 0:02:53.4]}
4. e5 {[%clk 0:03:00.4]} 4... dxe5 {[%clk 0:02:51.6]} 5. Nxe5 {[%clk 0:03:01.3]}
5... e6 {[%clk 0:02:50]} 6. Bb5+ {[%clk 0:02:59.2]} 6... Nbd7 {[%clk 0:02:47.1]}
7. d4 {[%clk 0:02:58.5]} 7... a6 {[%clk 0:02:41.6]} 8. Bxd7+ {[%clk 0:02:57.1]}
8... Bxd7 {[%clk 0:02:37.2]} 9. Bf4 {[%clk 0:02:54.3]} 9... cxd4 {[%clk
0:02:25.3]} 10. Qxd4 {[%clk 0:02:55.2]} 10... Be7 {[%clk 0:02:21.9]} 11. O-O-O
{[%clk 0:02:53.8]} 11... Rc8 {[%clk 0:01:57.5]} 12. g4 {[%clk 0:02:45]} 12...
Nd5 {[%clk 0:01:51]} 13. Nxd5 {[%clk 0:02:33.8]} 13... exd5 {[%clk 0:01:50.7]}
14. Qxd5 {[%clk 0:02:34.7]} 14... Be6 {[%clk 0:01:45]} 15. Qxb7 {[%clk
0:02:21.2]} 15... Qa5 {[%clk 0:01:30.2]} 16. Rd7 {[%clk 0:02:20.5]} 16... Rxc2+
{[%clk 0:01:08.1]} 17. Kxc2 {[%clk 0:02:17.6]} 17... Qa4+ {[%clk 0:01:08.2]} 18.
b3 {[%clk 0:01:49.6]} 18... Qxa2+ {[%clk 0:01:02.9]} 19. Kc3 {[%clk 0:01:49.8]}
19... Qa5+ {[%clk 0:00:59.8]} 20. Kd3 {[%clk 0:01:38.8]} 20... O-O {[%clk
0:00:46.2]} 21. Nc6 {[%clk 0:01:29.8]} 21... Bf5+ {[%clk 0:00:30.1]} 22. gxf5
{[%clk 0:01:19.6]} 22... Qxf5+ {[%clk 0:00:31]} 23. Ke2 {[%clk 0:01:18.6]} 23...
Qe4+ {[%clk 0:00:24.7]} 24. Be3 {[%clk 0:01:17.5]} 24... Qc2+ {[%clk 0:00:20]}
25. Rd2 {[%clk 0:01:16.2]} 25... Qe4 {[%clk 0:00:11.1]} 26. Nxe7+ {[%clk
0:01:15.1]} 26... Qxe7 {[%clk 0:00:11.6]} 27. Qxe7 {[%clk 0:01:14.8]} 1-0

[Event "*** Titled Tuesday Blitz"]
[Site "Chess.com"]
[Date "2020.11.24"]
[Round "1"]
[White "Lagmantr"]
[Black "ExtremeLearner"]
[Result "1-0"]
[WhiteElo "2773"]
[BlackElo "2400"]
[TimeControl "180+1"]
[EndTime "10:20:49 PST"]
[Termination "Lagmantr won by resignation"]

1. e4 {[%clk 0:02:59.1]} 1... c6 {[%clk 0:02:58.9]} 2. d4 {[%clk 0:02:58.6]}
2... d5 {[%clk 0:02:55.1]} 3. e5 {[%clk 0:02:59.1]} 3... Bf5 {[%clk 0:02:51.1]}
4. Nf3 {[%clk 0:02:59.7]} 4... e6 {[%clk 0:02:41.7]} 5. Be2 {[%clk 0:03:00.3]}
5... c5 {[%clk 0:02:33.2]} 6. O-O {[%clk 0:02:59.6]} 6... Nc6 {[%clk 0:02:23.1]}
7. Nbd2 {[%clk 0:02:59.3]} 7... Qb6 {[%clk 0:02:11.4]} 8. c4 {[%clk 0:02:58]}
8... Rd8 {[%clk 0:02:02.7]} 9. cxd5 {[%clk 0:02:56.7]} 9... Rxd5 {[%clk
0:02:02.4]} 10. Nc4 {[%clk 0:02:55.7]} 10... Qd8 {[%clk 0:01:58.1]} 11. Bg5
{[%clk 0:02:54.8]} 11... Qd7 {[%clk 0:01:50.8]} 12. Qb3 {[%clk 0:02:40.3]} 12...
cxd4 {[%clk 0:01:08.9]} 13. Rfd1 {[%clk 0:02:39.2]} 13... d3 {[%clk 0:01:05.9]}
14. Bf1 {[%clk 0:02:38.7]} 14... h6 {[%clk 0:01:05.2]} 15. Bh4 {[%clk
0:02:35.6]} 15... Bc5 {[%clk 0:00:58.9]} 16. Rac1 {[%clk 0:02:18.9]} 16... g5
{[%clk 0:00:53.7]} 17. Bg3 {[%clk 0:02:17.6]} 17... Nge7 {[%clk 0:00:45]} 18.
Nd6+ {[%clk 0:02:17.2]} 18... Bxd6 {[%clk 0:00:44.5]} 19. exd6 {[%clk
0:02:18.1]} 19... Ng6 {[%clk 0:00:42.1]} 20. Bxd3 {[%clk 0:02:15.4]} 20... Bxd3
{[%clk 0:00:37.5]} 21. Rxd3 {[%clk 0:02:16.3]} 21... Rxd3 {[%clk 0:00:35.2]} 22.
Qxd3 {[%clk 0:02:17.2]} 22... O-O {[%clk 0:00:32.8]} 23. h4 {[%clk 0:02:14.1]}
23... g4 {[%clk 0:00:30.3]} 24. Nd2 {[%clk 0:02:13.7]} 24... f5 {[%clk
0:00:28.6]} 25. Nc4 {[%clk 0:02:10.2]} 25... h5 {[%clk 0:00:20]} 26. Re1 {[%clk
0:02:06.8]} 26... Kh7 {[%clk 0:00:14.3]} 27. a3 {[%clk 0:02:04.6]} 27... f4
{[%clk 0:00:13.5]} 28. Ne5 {[%clk 0:01:48.2]} 28... Nxe5 {[%clk 0:00:11]} 29.
Rxe5 {[%clk 0:01:46.4]} 29... fxg3 {[%clk 0:00:07.8]} 30. Rxh5+ {[%clk
0:01:46.7]} 30... Kg7 {[%clk 0:00:08.4]} 31. fxg3 {[%clk 0:01:45.7]} 31... e5
{[%clk 0:00:06.4]} 32. Rg5 {[%clk 0:01:44.9]} 32... Rf6 {[%clk 0:00:04.8]} 33.
h5 {[%clk 0:01:44.7]} 33... Rxd6 {[%clk 0:00:03.4]} 34. Rxg6+ {[%clk 0:01:44.1]}
34... Rxg6 {[%clk 0:00:03.9]} 35. Qxd7+ {[%clk 0:01:43.8]} 35... Kh8 {[%clk
0:00:04.8]} 36. hxg6 {[%clk 0:01:43.6]} 1-0

[Event "*** Titled Tuesday Blitz"]
[Site "Chess.com"]
[Date "2020.11.24"]
[Round "1"]
[White "Cambek64"]
[Black "vaishali2001"]
[Result "0-1"]
[WhiteElo "2298"]
[BlackElo "2592"]
[TimeControl "180+1"]
[EndTime "10:20:49 PST"]
[Termination "vaishali2001 won by checkmate"]

1. e4 {[%clk 0:02:54.4]} 1... c5 {[%clk 0:02:57.8]} 2. Nc3 {[%clk 0:02:53.2]}
2... Nc6 {[%clk 0:02:57.3]} 3. d3 {[%clk 0:02:53.6]} 3... g6 {[%clk 0:02:57.2]}
4. Be3 {[%clk 0:02:51.2]} 4... d6 {[%clk 0:02:56.3]} 5. d4 {[%clk 0:02:51.6]}
5... cxd4 {[%clk 0:02:54.5]} 6. Bxd4 {[%clk 0:02:52.1]} 6... Nxd4 {[%clk
0:02:45.4]} 7. Qxd4 {[%clk 0:02:53]} 7... Nf6 {[%clk 0:02:45.3]} 8. e5 {[%clk
0:02:52]} 8... dxe5 {[%clk 0:02:26.2]} 9. Bb5+ {[%clk 0:02:50.2]} 9... Bd7
{[%clk 0:02:24.1]} 10. Qxe5 {[%clk 0:02:49.2]} 10... Bg7 {[%clk 0:02:08]} 11.
O-O-O {[%clk 0:02:46.1]} 11... O-O {[%clk 0:02:01.6]} 12. Bxd7 {[%clk
0:02:44.6]} 12... Nxd7 {[%clk 0:01:29.6]} 13. Qb5 {[%clk 0:02:41.4]} 13... Qb6
{[%clk 0:01:07.8]} 14. Rxd7 {[%clk 0:02:10.7]} 14... Qxf2 {[%clk 0:01:02.7]} 15.
Qe2 {[%clk 0:01:33.3]} 15... Qf4+ {[%clk 0:00:55.6]} 16. Qd2 {[%clk 0:01:11.5]}
16... Qf1+ {[%clk 0:00:54]} 17. Nd1 {[%clk 0:01:08.6]} 17... Rac8 {[%clk
0:00:38.4]} 18. Qe2 {[%clk 0:00:51.7]} 18... Qf4+ {[%clk 0:00:32.1]} 19. Kb1
{[%clk 0:00:51.2]} 19... Bh6 {[%clk 0:00:28.8]} 20. Nf2 {[%clk 0:00:40.5]} 20...
Qc1# {[%clk 0:00:28.5]} 0-1

[Event "*** Titled Tuesday Blitz"]
[Site "Chess.com"]
[Date "2020.11.24"]
[Round "1"]
[White "Eternauta2400"]
[Black "Road2GM3000"]
[Result "1-0"]
[WhiteElo "2482"]
[BlackElo "2004"]
[TimeControl "180+1"]
[EndTime "10:20:50 PST"]
[Termination "Eternauta2400 won by checkmate"]

1. d4 {[%clk 0:03:00.5]} 1... d5 {[%clk 0:02:58]} 2. c4 {[%clk 0:02:59.9]} 2...
c6 {[%clk 0:02:55.5]} 3. cxd5 {[%clk 0:02:54.9]} 3... cxd5 {[%clk 0:02:56.4]} 4.
Bf4 {[%clk 0:02:55.1]} 4... Nf6 {[%clk 0:02:56.6]} 5. Nc3 {[%clk 0:02:55]} 5...
e6 {[%clk 0:02:54.4]} 6. e3 {[%clk 0:02:55.5]} 6... Bd6 {[%clk 0:02:54.8]} 7.
Bxd6 {[%clk 0:02:55.5]} 7... Qxd6 {[%clk 0:02:55.7]} 8. f4 {[%clk 0:02:56]} 8...
a6 {[%clk 0:02:55.9]} 9. Nf3 {[%clk 0:02:56.4]} 9... Nbd7 {[%clk 0:02:54.6]} 10.
Bd3 {[%clk 0:02:57]} 10... b5 {[%clk 0:02:54.3]} 11. O-O {[%clk 0:02:56.9]}
11... Bb7 {[%clk 0:02:51.3]} 12. Ne5 {[%clk 0:02:54.5]} 12... Ne4 {[%clk
0:02:46.1]} 13. Qf3 {[%clk 0:02:29.5]} 13... Ndf6 {[%clk 0:02:30.9]} 14. g4
{[%clk 0:02:24]} 14... Nxc3 {[%clk 0:02:25.7]} 15. bxc3 {[%clk 0:02:24.1]} 15...
Rc8 {[%clk 0:02:23.1]} 16. f5 {[%clk 0:02:07.4]} 16... O-O {[%clk 0:02:01.3]}
17. Qg3 {[%clk 0:01:47.9]} 17... Rxc3 {[%clk 0:01:36.5]} 18. g5 {[%clk
0:01:43.8]} 18... Ne4 {[%clk 0:01:34.1]} 19. Bxe4 {[%clk 0:01:40.8]} 19... dxe4
{[%clk 0:01:35]} 20. f6 {[%clk 0:01:40.7]} 20... g6 {[%clk 0:01:15.9]} 21. Qh4
{[%clk 0:01:33.7]} 21... Rfc8 {[%clk 0:01:11.7]} 22. Nxf7 {[%clk 0:01:25.1]}
22... Qf8 {[%clk 0:00:39]} 23. Nh6+ {[%clk 0:01:24.2]} 23... Kh8 {[%clk
0:00:39.5]} 24. Qf4 {[%clk 0:01:22.6]} 24... e5 {[%clk 0:00:19.7]} 25. Qxe5
{[%clk 0:01:03.8]} 25... Rc2 {[%clk 0:00:17.9]} 26. f7+ {[%clk 0:01:02]} 26...
Qg7 {[%clk 0:00:14.6]} 27. f8=Q+ {[%clk 0:01:02.9]} 27... Rxf8 {[%clk
0:00:14.4]} 28. Rxf8# {[%clk 0:01:03.8]} 1-0

[Event "*** Titled Tuesday Blitz"]
[Site "Chess.com"]
[Date "2020.11.24"]
[Round "1"]
[White "witcher8"]
[Black "AryanTari"]
[Result "0-1"]
[WhiteElo "2445"]
[BlackElo "2901"]
[TimeControl "180+1"]
[EndTime "10:20:51 PST"]
[Termination "AryanTari won on time"]

1. e4 {[%clk 0:02:59.6]} 1... c6 {[%clk 0:02:57.4]} 2. d4 {[%clk 0:02:59]} 2...
d5 {[%clk 0:02:58]} 3. e5 {[%clk 0:02:59.2]} 3... Bf5 {[%clk 0:02:53.4]} 4. h4
{[%clk 0:02:58.6]} 4... c5 {[%clk 0:02:51.4]} 5. dxc5 {[%clk 0:02:47.1]} 5...
Nc6 {[%clk 0:02:49.6]} 6. Nf3 {[%clk 0:02:44.6]} 6... e6 {[%clk 0:02:48.9]} 7.
Be3 {[%clk 0:02:42]} 7... Bg4 {[%clk 0:02:38.1]} 8. Bb5 {[%clk 0:02:40.4]} 8...
Ne7 {[%clk 0:02:32.1]} 9. c3 {[%clk 0:02:26.2]} 9... a6 {[%clk 0:02:17.5]} 10.
Ba4 {[%clk 0:02:25.4]} 10... Nf5 {[%clk 0:02:16.2]} 11. Qd3 {[%clk 0:02:13.9]}
11... Bxf3 {[%clk 0:02:08.7]} 12. gxf3 {[%clk 0:02:13.4]} 12... Be7 {[%clk
0:02:09.6]} 13. h5 {[%clk 0:02:06.8]} 13... O-O {[%clk 0:02:08.9]} 14. Bxc6
{[%clk 0:02:03.9]} 14... bxc6 {[%clk 0:02:09.8]} 15. Nd2 {[%clk 0:02:02.5]}
15... Qb8 {[%clk 0:01:57.7]} 16. Bd4 {[%clk 0:01:12.4]} 16... Qxb2 {[%clk
0:01:50.6]} 17. O-O {[%clk 0:01:09.3]} 17... Qb5 {[%clk 0:01:44.1]} 18. Qb1
{[%clk 0:00:39.9]} 18... Qe2 {[%clk 0:01:37.9]} 19. Qd1 {[%clk 0:00:21.6]} 19...
Nxd4 {[%clk 0:01:24.8]} 20. cxd4 {[%clk 0:00:21.5]} 20... Qd3 {[%clk 0:01:25.4]}
21. Nb3 {[%clk 0:00:21.1]} 21... Qf5 {[%clk 0:01:26]} 22. f4 {[%clk 0:00:17.8]}
22... Qxf4 {[%clk 0:01:25.5]} 23. Kg2 {[%clk 0:00:17.6]} 23... f6 {[%clk
0:01:22.4]} 24. exf6 {[%clk 0:00:13.3]} 24... Rxf6 {[%clk 0:01:22.3]} 25. Qd3
{[%clk 0:00:09.3]} 25... Rf5 {[%clk 0:01:19.9]} 26. Rg1 {[%clk 0:00:03.2]} 26...
Qxf2+ {[%clk 0:01:18]} 0-1

[Event "*** Titled Tuesday Blitz"]
[Site "Chess.com"]
[Date "2020.11.24"]
[Round "1"]
[White "aleksandrovaleksei"]
[Black "RTFrancisco"]
[Result "1/2-1/2"]
[WhiteElo "2597"]
[BlackElo "2380"]
[TimeControl "180+1"]
[EndTime "10:20:52 PST"]
[Termination "Game drawn by repetition"]

1. d4 {[%clk 0:03:00.9]} 1... Nf6 {[%clk 0:02:59.2]} 2. c4 {[%clk 0:03:00.1]}
2... e6 {[%clk 0:02:59]} 3. Nc3 {[%clk 0:02:59.7]} 3... Bb4 {[%clk 0:02:57.7]}
4. e3 {[%clk 0:02:59.5]} 4... O-O {[%clk 0:02:56.5]} 5. Bd3 {[%clk 0:02:58.8]}
5... c5 {[%clk 0:02:56.4]} 6. Nf3 {[%clk 0:02:57.6]} 6... d5 {[%clk 0:02:54.8]}
7. O-O {[%clk 0:02:56.4]} 7... cxd4 {[%clk 0:02:54.6]} 8. exd4 {[%clk 0:02:56]}
8... dxc4 {[%clk 0:02:54.9]} 9. Bxc4 {[%clk 0:02:56.9]} 9... b6 {[%clk
0:02:55.2]} 10. Bd3 {[%clk 0:02:52.1]} 10... Bb7 {[%clk 0:02:51.1]} 11. a3
{[%clk 0:02:52]} 11... Bxc3 {[%clk 0:02:48.1]} 12. bxc3 {[%clk 0:02:52.9]} 12...
Nbd7 {[%clk 0:02:44.1]} 13. Bf4 {[%clk 0:02:38.8]} 13... Rc8 {[%clk 0:02:39.7]}
14. c4 {[%clk 0:02:37.6]} 14... Re8 {[%clk 0:02:24]} 15. Re1 {[%clk 0:02:35.9]}
15... Nf8 {[%clk 0:02:19.9]} 16. Be3 {[%clk 0:02:36]} 16... Ng6 {[%clk
0:01:57.2]} 17. a4 {[%clk 0:02:35.5]} 17... Bxf3 {[%clk 0:01:53.8]} 18. Qxf3
{[%clk 0:02:32.1]} 18... e5 {[%clk 0:01:54.2]} 19. Bg5 {[%clk 0:01:59.2]} 19...
Qxd4 {[%clk 0:01:40.6]} 20. Rad1 {[%clk 0:01:48.5]} 20... e4 {[%clk 0:01:19.5]}
21. Bxf6 {[%clk 0:01:48.2]} 21... Qxf6 {[%clk 0:01:11.5]} 22. Bxe4 {[%clk
0:01:40.5]} 22... Qxf3 {[%clk 0:00:50.6]} 23. Bxf3 {[%clk 0:01:39.5]} 23...
Rxe1+ {[%clk 0:00:48.7]} 24. Rxe1 {[%clk 0:01:40]} 24... Rxc4 {[%clk 0:00:47.4]}
25. a5 {[%clk 0:01:37.9]} 25... bxa5 {[%clk 0:00:44.5]} 26. Re8+ {[%clk
0:01:37]} 26... Nf8 {[%clk 0:00:43.9]} 27. g3 {[%clk 0:01:37.5]} 27... Rc7
{[%clk 0:00:26.5]} 28. Re5 {[%clk 0:01:36.8]} 28... g6 {[%clk 0:00:19.9]} 29.
Rxa5 {[%clk 0:01:36.6]} 29... Ne6 {[%clk 0:00:20.5]} 30. h4 {[%clk 0:01:33.4]}
30... h5 {[%clk 0:00:19.7]} 31. Bd5 {[%clk 0:01:30.2]} 31... Kf8 {[%clk
0:00:19.9]} 32. Bxe6 {[%clk 0:01:28]} 32... fxe6 {[%clk 0:00:20.8]} 33. Ra6
{[%clk 0:01:27]} 33... Kf7 {[%clk 0:00:20.9]} 34. Kg2 {[%clk 0:01:27.6]} 34...
Kf6 {[%clk 0:00:21]} 35. Kf3 {[%clk 0:01:27.8]} 35... Re7 {[%clk 0:00:20.9]} 36.
Ke4 {[%clk 0:01:26.7]} 36... Rb7 {[%clk 0:00:20.8]} 37. Kf4 {[%clk 0:01:25.4]}
37... Rd7 {[%clk 0:00:20.7]} 38. Ke4 {[%clk 0:01:25.1]} 38... Rb7 {[%clk
0:00:21]} 39. Kf4 {[%clk 0:01:25.1]} 39... Rd7 {[%clk 0:00:20.9]} 40. Ke4 {[%clk
0:01:25]} 40... Rb7 {[%clk 0:00:21.2]} 1/2-1/2